fUST/lending_fUST_20250318
["ID","MTS","AMOUNT","RATE_DAILY","PERIOD"]
[356339451,1742297370314,-500.0,8.219e-05,2]
[356339452,1742297370335,-500.0,8.219e-05,2]
[356339453,1742297370363,-194.0,8.219e-05,2]
[356339454,1742297370390,-505.8831044,8.219e-05,2]
[356339455,1742297370418,-500.0,8.219e-05,2]
[356339456,1742297370443,-541.97,8.219e-05,2]
[356339457,1742297370468,-500.00763774,8.219e-05,2]
[356339458,1742297370494,-500.0,8.219e-05,2]
[356339459,1742297370523,-194.0,8.219e-05,2]
[356339460,1742297370550,-500.0,8.219e-05,2]
[356339461,1742297370576,-500.0,8.219e-05,2]
[356339462,1742297370604,-500.0,8.219e-05,2]
[356339463,1742297370631,-500.0,8.219e-05,2]
[356339464,1742297370655,-500.0,8.219e-05,2]
[356339465,1742297370681,-500.0,8.219e-05,2]
[356339466,1742297370704,-504.70775042,8.219e-05,2]
[356339467,1742297370730,-500.0,8.219e-05,2]
[356339468,1742297370757,-501.10369876,8.219e-05,2]
[356339469,1742297370784,-500.0,8.219e-05,2]
[356339470,1742297370807,-513.82919529,8.219e-05,2]
[356339471,1742297370831,-505.78277339,8.219e-05,2]
[356339472,1742297370856,-1095.5,8.219e-05,2]
[356339473,1742297370882,-500.0,8.219e-05,2]
[356339474,1742297370907,-500.0,8.219e-05,2]
[356339475,1742297370934,-500.0,8.219e-05,2]
[356339476,1742297370960,-500.0,8.219e-05,2]
[356339477,1742297370989,-500.0,8.219e-05,2]
[356339478,1742297371018,-723.93,8.219e-05,2]
[356339479,1742297371042,-481.56629332,8.219e-05,2]
[356339480,1742297371064,-500.0,8.219e-05,2]
[356339481,1742297371088,-500.0,8.219e-05,2]
[356339482,1742297371113,-500.0,8.219e-05,2]
[356339483,1742297371139,-500.0,8.219e-05,2]
[356339484,1742297371164,-500.0,8.219e-05,2]
[356339485,1742297371186,-500.0,8.219e-05,2]
[356339486,1742297371210,-500.0,8.219e-05,2]
[356339487,1742297371233,-500.0,8.219e-05,2]
[356339488,1742297371258,-500.0,8.219e-05,2]
[356339489,1742297371281,-500.0,8.219e-05,2]
[356339490,1742297371307,-500.0,8.219e-05,2]
[356339491,1742297371330,-506.44574319,8.219e-05,2]
[356339492,1742297371353,-500.0,8.219e-05,2]
[356339493,1742297371377,-500.0,8.219e-05,2]
[356339494,1742297371401,-500.0,8.219e-05,2]
[356339495,1742297371426,-500.0,8.219e-05,2]
[356339496,1742297371450,-500.0,8.219e-05,2]
[356339497,1742297371474,-500.0,8.219e-05,2]
[356339498,1742297371498,-500.0,8.219e-05,2]
[356339499,1742297371524,-500.0,8.219e-05,2]
[356339500,1742297371550,-500.0,8.219e-05,2]
[356339501,1742297371574,-500.0,8.219e-05,2]
[356339502,1742297371601,-500.0,8.219e-05,2]
[356339503,1742297371626,-508.69654683,8.219e-05,2]
[356339504,1742297371651,-909.15,8.219e-05,2]
[356339505,1742297371675,-500.0,8.219e-05,2]
[356339506,1742297371699,-500.0,8.219e-05,2]
[356339507,1742297371724,-516.72513292,8.219e-05,2]
[356339508,1742297371749,-516.47289369,8.219e-05,2]
[356339509,1742297371774,-4526.97,8.219e-05,2]
[356339510,1742297371798,-500.0,8.219e-05,2]
[356339511,1742297371824,-500.0,8.219e-05,2]
[356339512,1742297371849,-500.0,8.219e-05,2]
[356339513,1742297371873,-500.0,8.219e-05,2]
[356339514,1742297371896,-500.0,8.219e-05,2]
[356339515,1742297371920,-500.0,8.219e-05,2]
[356339516,1742297371944,-500.0,8.219e-05,2]
[356339517,1742297371969,-500.0,8.219e-05,2]
[356339518,1742297371992,-500.0,8.219e-05,2]
[356339519,1742297372017,-500.0,8.219e-05,2]
[356339520,1742297372041,-500.0,8.219e-05,2]
[356339521,1742297372065,-511.94052116,8.219e-05,2]
[356339522,1742297372089,-503.38749938,8.219e-05,2]
[356339523,1742297372114,-500.0,8.219e-05,2]
[356339524,1742297372140,-4720.62,8.219e-05,2]
[356339525,1742297372166,-500.0,8.219e-05,2]
[356339526,1742297372194,-1601.72,8.219e-05,2]
[356339527,1742297372219,-511.86678883,8.219e-05,2]
[356339528,1742297372246,-500.0,8.219e-05,2]
[356339529,1742297372270,-526.77402642,8.219e-05,2]
[356339530,1742297372294,-460.75985241,8.219e-05,2]
[356339531,1742297372318,-500.0,8.219e-05,2]
[356339532,1742297372342,-500.0,8.219e-05,2]
[356339533,1742297372370,-500.0,8.219e-05,2]
[356339534,1742297372393,-506.76159909,8.219e-05,2]
[356339535,1742297372417,-525.48,8.219e-05,2]
[356339536,1742297372441,-500.0,8.219e-05,2]
[356339537,1742297372467,-500.0,8.219e-05,2]
[356339538,1742297372490,-500.0,8.219e-05,2]
[356339539,1742297372516,-500.0,8.219e-05,2]
[356339540,1742297372540,-500.0,8.219e-05,2]
[356339541,1742297372563,-505.87109784,8.219e-05,2]
[356339542,1742297372818,-500.0,8.219e-05,2]
[356339543,1742297372846,-500.0,8.219e-05,2]
[356339544,1742297372868,-500.0,8.219e-05,2]
[356339545,1742297372890,-500.0,8.219e-05,2]
[356339546,1742297372912,-634.28,8.219e-05,2]
[356339547,1742297372935,-500.0,8.219e-05,2]
[356339548,1742297372956,-9499.589703,8.219e-05,2]
[356339549,1742297372978,-9499.589703,8.219e-05,2]
[356339550,1742297373000,-836.25,8.219e-05,2]
[356339551,1742297373022,-500.0,8.219e-05,2]
[356339552,1742297373046,-510.6916629,8.219e-05,2]
[356339553,1742297373069,-507.78251868,8.219e-05,2]
[356339554,1742297373093,-500.0,8.219e-05,2]
[356339555,1742297373117,-588.74,8.219e-05,2]
[356339556,1742297373140,-504.50481345,8.219e-05,2]
[356339557,1742297373162,-500.0,8.219e-05,2]
[356339558,1742297373183,-506.65118979,8.219e-05,2]
[356339559,1742297373206,-500.0,8.219e-05,2]
[356339560,1742297373229,-500.0,8.219e-05,2]
[356339561,1742297373252,-500.0,8.219e-05,2]
[356339562,1742297373274,-500.0,8.219e-05,2]
[356339563,1742297373296,-500.0,8.219e-05,2]
[356339564,1742297373319,-500.0,8.219e-05,2]
[356339565,1742297373345,-209.77681257,8.219e-05,2]
[356339566,1742297373369,-511.16262156,8.219e-05,2]
[356339567,1742297373392,-500.0,8.219e-05,2]
[356339568,1742297373413,-501.59336455,8.219e-05,2]
[356339569,1742297373436,-500.0,8.219e-05,2]
[356339570,1742297373459,-500.0,8.219e-05,2]
[356339571,1742297373481,-500.0,8.219e-05,2]
[356339572,1742297373505,-500.0,8.219e-05,2]
[356339573,1742297373531,-500.0,8.219e-05,2]
[356339574,1742297373553,-495.68553316,8.219e-05,2]
[356339575,1742297373575,-6515.99,8.219e-05,2]
[356339576,1742297373599,-500.0,8.219e-05,2]
[356339577,1742297373622,-500.0,8.219e-05,2]
[356339578,1742297373644,-500.0,8.219e-05,2]
[356339579,1742297373666,-500.0,8.219e-05,2]
[356339580,1742297373690,-500.0,8.219e-05,2]
[356339581,1742297373718,-240.93201089,8.219e-05,2]
[356339582,1742297373740,-500.0,8.219e-05,2]
[356339583,1742297373763,-21813.45,8.219e-05,2]
[356339584,1742297373790,-500.0,8.219e-05,2]
[356339585,1742297373812,-535.63416476,8.219e-05,2]
[356339586,1742297373835,-500.0,8.219e-05,2]
[356339587,1742297373861,-1136.45,8.219e-05,2]
[356339588,1742297373883,-500.0,8.219e-05,2]
[356339589,1742297373906,-606.43240725,8.219e-05,2]
[356339590,1742297373928,-500.0,8.219e-05,2]
[356339591,1742297373950,-622.2,8.269e-05,2]
[356339592,1742297373977,-645.2214,8.324e-05,2]
[356339593,1742297373999,-669.0945918,8.379e-05,2]
[356339594,1742297374021,-9499.589703,8.424e-05,2]
[356339595,1742297374043,-9499.589703,8.424e-05,2]
[356339596,1742297374065,-693.8510917,8.434e-05,2]
[356339597,1742297374087,-719.52358209,8.489e-05,2]
[356339598,1742297374111,-500.0,8.493e-05,2]
[356339599,1742297374132,-500.0,8.493e-05,2]
[356339600,1742297374153,-500.0,8.493e-05,2]
[356339601,1742297374179,-500.0,8.493e-05,2]
[356339602,1742297374202,-500.0,8.493e-05,2]
[356339603,1742297374224,-510.67214159,8.493e-05,2]
[356339604,1742297374246,-1041.49,8.493e-05,2]
[356339605,1742297374269,-1168.36,8.493e-05,2]
[356339606,1742297374293,-500.0,8.493e-05,2]
[356339607,1742297374315,-2390.58,8.493e-05,2]
[356339608,1742297374336,-352.68671421,8.493e-05,2]
[356339609,1742297374357,-500.0,8.493e-05,2]
[356339610,1742297374378,-500.0,8.493e-05,2]
[356339611,1742297374399,-500.0,8.493e-05,2]
[356339612,1742297374420,-500.0,8.493e-05,2]
[356339613,1742297374442,-1095.5,8.493e-05,2]
[356339614,1742297374462,-151.0,8.493e-05,2]
[356339615,1742297374484,-723.93,8.493e-05,2]
[356339616,1742297374506,-500.0,8.493e-05,2]
[356339617,1742297374529,-500.0,8.493e-05,2]
[356339618,1742297374550,-500.0,8.493e-05,2]
[356339619,1742297374573,-500.0,8.493e-05,2]
[356339620,1742297374593,-500.0,8.493e-05,2]
[356339621,1742297374615,-500.0,8.493e-05,2]
[356339622,1742297374637,-500.0,8.493e-05,2]
[356339623,1742297374659,-500.0,8.493e-05,2]
[356339624,1742297374680,-500.0,8.493e-05,2]
[356339625,1742297374702,-909.15,8.493e-05,2]
[356339626,1742297374724,-4526.97,8.493e-05,2]
[356339627,1742297374745,-500.0,8.493e-05,2]
[356339628,1742297374766,-500.0,8.493e-05,2]
[356339629,1742297374787,-500.0,8.493e-05,2]
[356339630,1742297374807,-4720.62,8.493e-05,2]
[356339631,1742297374829,-1601.72,8.493e-05,2]
[356339632,1742297374851,-500.0,8.493e-05,2]
[356339633,1742297374872,-500.0,8.493e-05,2]
[356339634,1742297374893,-500.0,8.493e-05,2]
[356339635,1742297374915,-525.48,8.493e-05,2]
[356339636,1742297374938,-500.0,8.493e-05,2]
[356339637,1742297374961,-500.0,8.493e-05,2]
[356339638,1742297374983,-500.0,8.493e-05,2]
[356339639,1742297375004,-9499.589703,8.493e-05,2]
[356339640,1742297375025,-836.25,8.493e-05,2]
[356339641,1742297375045,-9499.589703,8.493e-05,2]
[356339642,1742297375067,-500.0,8.493e-05,2]
[356339643,1742297375088,-500.0,8.493e-05,2]
[356339644,1742297375109,-500.0,8.493e-05,2]
[356339645,1742297375130,-500.0,8.493e-05,2]
[356339646,1742297375154,-500.0,8.493e-05,2]
[356339647,1742297375175,-6515.99,8.493e-05,2]
[356339648,1742297375196,-500.0,8.493e-05,2]
[356339649,1742297375217,-500.0,8.493e-05,2]
[356339650,1742297375238,-21813.45,8.493e-05,2]
[356339651,1742297375259,-407.1069798,8.493e-05,2]
[356339652,1742297375281,-500.0,8.493e-05,2]
[356339653,1742297375302,-1136.45,8.493e-05,2]
[356339654,1742297375324,-746.14595463,8.544e-05,2]
[356339655,1742297375346,-773.75335495,8.599e-05,2]
[356339656,1742297375371,-795.67535766,8.628e-05,2]
[356339657,1742297375391,-802.38222908,8.654e-05,2]
[356339658,1742297375415,-151.0,8.666e-05,2]
[356339659,1742297375439,-9499.589703,8.666e-05,2]
[356339660,1742297375459,-9499.589703,8.666e-05,2]
[356339661,1742297375480,-9499.589703,8.666e-05,2]
[356339662,1742297375502,-9499.589703,8.666e-05,2]
[356339663,1742297375528,-52254.49958131,8.666e-05,2]
[356339664,1742297375550,-832.07037156,8.709e-05,2]
[356339665,1742297375574,-552.81690983,8.767e-05,2]
[356339666,1742297375599,-500.0,8.767e-05,2]
[356339667,1742297375621,-500.0,8.767e-05,2]
[356339668,1742297375643,-500.0,8.767e-05,2]
[356339669,1742297375665,-1041.49,8.767e-05,2]
[356339670,1742297375687,-1168.36,8.767e-05,2]
[356339671,1742297375708,-500.0,8.767e-05,2]
[356339672,1742297375730,-2390.58,8.767e-05,2]
[356339673,1742297375752,-500.0,8.767e-05,2]
[356339674,1742297375775,-500.0,8.767e-05,2]
[356339675,1742297375798,-190.56,8.767e-05,2]
[356339676,1742297375820,-500.0,8.767e-05,2]
[356339677,1742297375842,-1095.5,8.767e-05,2]
[356339678,1742297375864,-151.0,8.767e-05,2]
[356339679,1742297375886,-723.93,8.767e-05,2]
[356339680,1742297375908,-500.0,8.767e-05,2]
[356339681,1742297375930,-500.0,8.767e-05,2]
[356339682,1742297375953,-500.0,8.767e-05,2]
[356339683,1742297375975,-500.0,8.767e-05,2]
[356339684,1742297375997,-500.0,8.767e-05,2]
[356339685,1742297376020,-500.0,8.767e-05,2]
[356339686,1742297376041,-500.0,8.767e-05,2]
[356339687,1742297376064,-500.0,8.767e-05,2]
[356339688,1742297376207,-500.0,8.767e-05,2]
[356339689,1742297376236,-909.15,8.767e-05,2]
[356339690,1742297376259,-4526.97,8.767e-05,2]
[356339691,1742297376285,-500.0,8.767e-05,2]
[356339692,1742297376307,-500.0,8.767e-05,2]
[356339693,1742297376329,-260.62926625,8.767e-05,2]
[356339694,1742297376350,-2169.86564613,8.767e-05,2]
[356339727,1742297432871,-268.50813502,8.193e-05,2]
[356339728,1742297432891,-231.49186498,8.193e-05,2]
[356339729,1742297432902,-502.25513067,8.193e-05,2]
[356339730,1742297432913,-500.0,8.193e-05,2]
[356339731,1742297432924,-1157.63965869,8.214e-05,2]
[356339732,1742297432933,-300.0,8.218e-05,2]
[356339733,1742297432942,-9.65423755,8.219e-05,2]
[356339745,1742297438053,-2141.42562564,8.119e-05,2]
[356339746,1742297438243,-1550.33324866,8.219e-05,2]
[356339747,1742297438254,-500.0,8.219e-05,2]
[356339748,1742297438264,-505.06363918,8.219e-05,2]
[356339749,1742297438274,-958.57,8.219e-05,2]
[356339750,1742297438284,-507.11033327,8.219e-05,2]
[356339751,1742297438294,-129.84805858,8.219e-05,2]
[356339752,1742297438444,-370.15194142,8.219e-05,2]
[356339753,1742297438453,-464.07805858,8.219e-05,2]
[356339755,1742297440391,-41.36069405,8.219e-05,2]
[356339757,1742297440401,-633.44,8.219e-05,2]
[356339758,1742297440411,-500.0,8.219e-05,2]
[356339760,1742297440420,-611.33860312,8.219e-05,2]
[356339762,1742297440433,-1020.83395543,8.219e-05,2]
[356339763,1742297440449,-279.99860564,8.219e-05,2]
[356339764,1742297440502,-1584.20000004,8.219e-05,2]
[356339774,1742297443265,-1169.59883577,8.219e-05,2]
[356339775,1742297443275,-500.0,8.219e-05,2]
[356339776,1742297443285,-500.0,8.219e-05,2]
[356339777,1742297443295,-501.04492624,8.219e-05,2]
[356339778,1742297443304,-500.0,8.219e-05,2]
[356339779,1742297443313,-500.0,8.219e-05,2]
[356339780,1742297443323,-500.0,8.219e-05,2]
[356339781,1742297443332,-1022.31,8.219e-05,2]
[356339782,1742297443342,-500.0,8.219e-05,2]
[356339783,1742297443351,-500.0,8.219e-05,2]
[356339784,1742297443361,-766.56,8.219e-05,2]
[356339785,1742297443371,-1559.98748621,8.425e-05,2]
[356339786,1742297443381,-500.0,8.493e-05,2]
[356339787,1742297443391,-958.57,8.493e-05,2]
[356339788,1742297443401,-633.44,8.493e-05,2]
[356339789,1742297443410,-4665.97,8.493e-05,2]
[356339790,1742297443421,-410.53226221,8.493e-05,2]
[356339791,1742297443436,-89.46773779,8.493e-05,2]
[356339792,1742297443446,-500.0,8.493e-05,2]
[356339793,1742297443456,-500.0,8.493e-05,2]
[356339794,1742297443465,-1022.31,8.493e-05,2]
[356339795,1742297443475,-500.0,8.493e-05,2]
[356339796,1742297443484,-500.0,8.493e-05,2]
[356339797,1742297443494,-766.56,8.493e-05,2]
[356339798,1742297443504,-795.67535766,8.543e-05,2]
[356339799,1742297443514,-1559.98748621,8.63e-05,2]
[356339800,1742297443524,-370.74018834,8.659e-05,2]
[356339801,1742297443539,-1710.4474931,8.66e-05,2]
[356339802,1742297443555,-123289.55250689,8.66e-05,2]
[356339803,1742297443565,-1601.72,8.767e-05,2]
[356339804,1742297443576,-500.0,8.767e-05,2]
[356339805,1742297443586,-525.48,8.767e-05,2]
[356339806,1742297443596,-500.0,8.767e-05,2]
[356339807,1742297443607,-9499.589703,8.767e-05,2]
[356339808,1742297443620,-9499.589703,8.767e-05,2]
[356339809,1742297443629,-9499.589703,8.767e-05,2]
[356339810,1742297443639,-500.0,8.767e-05,2]
[356339811,1742297443650,-9499.589703,8.767e-05,2]
[356339812,1742297443659,-500.0,8.767e-05,2]
[356339813,1742297443669,-500.0,8.767e-05,2]
[356339814,1742297443679,-500.0,8.767e-05,2]
[356339815,1742297443689,-500.0,8.767e-05,2]
[356339816,1742297443699,-500.0,8.767e-05,2]
[356339817,1742297443708,-6515.99,8.767e-05,2]
[356339818,1742297443717,-500.0,8.767e-05,2]
[356339819,1742297443727,-21813.45,8.767e-05,2]
[356339820,1742297443736,-500.0,8.767e-05,2]
[356339821,1742297443747,-1136.45,8.767e-05,2]
[356339822,1742297443756,-500.0,8.767e-05,2]
[356339823,1742297443766,-958.57,8.767e-05,2]
[356339824,1742297443777,-633.44,8.767e-05,2]
[356339825,1742297443787,-4665.97,8.767e-05,2]
[356339826,1742297443797,-500.0,8.767e-05,2]
[356339827,1742297443807,-557.13756108,8.767e-05,2]
[356339828,1742297443817,-500.0,8.767e-05,2]
[356339829,1742297443827,-1022.31,8.767e-05,2]
[356339830,1742297443836,-500.0,8.767e-05,2]
[356339831,1742297443846,-500.0,8.767e-05,2]
[356339832,1742297443856,-766.56,8.767e-05,2]
[356339833,1742297443866,-283.42834269,8.832e-05,2]
[356339834,1742297443875,-800.0,8.832e-05,2]
[356339835,1742297443885,-1559.98748621,8.836e-05,2]
[356339836,1742297443895,-800.0,8.837e-05,2]
[356339837,1742297443905,-800.0,8.866e-05,2]
[356339838,1742297443914,-800.0,8.921e-05,2]
[356339839,1742297443924,-399.0,8.935e-05,2]
[356339840,1742297443935,-300.0,8.935e-05,2]
[356339841,1742297443945,-800.0,8.959e-05,2]
[356339842,1742297443956,-800.0,8.976e-05,2]
[356339843,1742297443966,-500.0,9e-05,2]
[356339844,1742297443976,-800.0,9.011e-05,2]
[356339845,1742297443987,-800.0,9.024e-05,2]
[356339846,1742297443996,-355.43,9.035e-05,2]
[356339847,1742297444006,-161.6081805,9.035e-05,2]
[356339848,1742297444016,-9499.589703,9.035e-05,2]
[356339849,1742297444025,-9499.589703,9.035e-05,2]
[356339850,1742297444035,-800.0,9.036e-05,2]
[356339851,1742297444045,-800.0,9.037e-05,2]
[356339853,1742297444055,-420.0,9.04e-05,2]
[356339854,1742297444064,-500.0,9.041e-05,2]
[356339855,1742297444073,-500.0,9.041e-05,2]
[356339856,1742297444082,-500.0,9.041e-05,2]
[356339857,1742297444092,-1041.49,9.041e-05,2]
[356339858,1742297444101,-500.0,9.041e-05,2]
[356339859,1742297444110,-2390.58,9.041e-05,2]
[356339860,1742297444120,-208.44716042,9.041e-05,2]
[356339861,1742297444130,-500.0,9.041e-05,2]
[356339862,1742297444139,-284.447292,9.041e-05,2]
[356339863,1742297444149,-500.0,9.041e-05,2]
[356339864,1742297444158,-500.0,9.041e-05,2]
[356339865,1742297444168,-500.0,9.041e-05,2]
[356339866,1742297444177,-500.0,9.041e-05,2]
[356339867,1742297444188,-500.0,9.041e-05,2]
[356339868,1742297444198,-500.0,9.041e-05,2]
[356339869,1742297444208,-500.0,9.041e-05,2]
[356339870,1742297444217,-500.0,9.041e-05,2]
[356339871,1742297444227,-909.15,9.041e-05,2]
[356339872,1742297444237,-4526.97,9.041e-05,2]
[356339873,1742297444247,-500.0,9.041e-05,2]
[356339874,1742297444256,-500.0,9.041e-05,2]
[356339875,1742297444266,-1601.72,9.041e-05,2]
[356339876,1742297444275,-500.0,9.041e-05,2]
[356339877,1742297444284,-525.48,9.041e-05,2]
[356339878,1742297444294,-500.0,9.041e-05,2]
[356339879,1742297444304,-9499.589703,9.041e-05,2]
[356339880,1742297444314,-9499.589703,9.041e-05,2]
[356339881,1742297444324,-500.0,9.041e-05,2]
[356339882,1742297444334,-9499.589703,9.041e-05,2]
[356339883,1742297444343,-9499.589695,9.041e-05,2]
[356339884,1742297444353,-500.0,9.041e-05,2]
[356339885,1742297444362,-500.0,9.041e-05,2]
[356339886,1742297444371,-500.0,9.041e-05,2]
[356339887,1742297444381,-500.0,9.041e-05,2]
[356339888,1742297444391,-500.0,9.041e-05,2]
[356339889,1742297444400,-6515.99,9.041e-05,2]
[356339890,1742297444410,-500.0,9.041e-05,2]
[356339891,1742297444420,-21813.45,9.041e-05,2]
[356339892,1742297444430,-595.03586906,9.041e-05,2]
[356339893,1742297444439,-1136.45,9.041e-05,2]
[356339894,1742297444449,-1559.98748621,9.041e-05,2]
[356339895,1742297444459,-500.0,9.041e-05,2]
[356339896,1742297444468,-958.57,9.041e-05,2]
[356339897,1742297444478,-633.44,9.041e-05,2]
[356339898,1742297444488,-4665.97,9.041e-05,2]
[356339899,1742297444497,-500.0,9.041e-05,2]
[356339900,1742297444507,-212.59179677,9.041e-05,2]
[356339901,1742297444517,-1022.31,9.041e-05,2]
[356339902,1742297444527,-500.0,9.041e-05,2]
[356339903,1742297444540,-500.0,9.041e-05,2]
[356339904,1742297444550,-766.56,9.041e-05,2]
[356339905,1742297444559,-800.0,9.044e-05,2]
[356339906,1742297444569,-800.0,9.056e-05,2]
[356339907,1742297444580,-800.0,9.057e-05,2]
[356339908,1742297444590,-800.0,9.083e-05,2]
[356339909,1742297444599,-800.0,9.091e-05,2]
[356339910,1742297444611,-160.0,9.103e-05,2]
[356339911,1742297444621,-833.90657078,9.103e-05,2]
[356339912,1742297444631,-417.85479977,9.103e-05,2]
[356339913,1742297444641,-160.0,9.103e-05,2]
[356339914,1742297444651,-12458.93820146,9.103e-05,2]
[356339915,1742297444662,-509.87742515,9.126e-05,2]
[356339916,1742297444671,-500.0,9.281e-05,2]
[356339917,1742297444682,-500.0,9.283e-05,2]
[356339918,1742297444692,-172.39682161,9.283e-05,2]
[356339919,1742297444702,-500.0,9.315e-05,2]
[356339920,1742297444712,-500.0,9.315e-05,2]
[356339921,1742297444722,-500.0,9.315e-05,2]
[356339922,1742297444732,-1041.49,9.315e-05,2]
[356339923,1742297444742,-500.0,9.315e-05,2]
[356339924,1742297444752,-2390.58,9.315e-05,2]
[356339925,1742297444762,-500.0,9.315e-05,2]
[356339926,1742297444771,-500.0,9.315e-05,2]
[356339927,1742297444780,-500.0,9.315e-05,2]
[356339928,1742297444789,-223.17608031,9.315e-05,2]
[356339929,1742297444799,-500.0,9.315e-05,2]
[356339930,1742297444810,-500.0,9.315e-05,2]
[356339931,1742297444820,-500.0,9.315e-05,2]
[356339932,1742297444831,-500.0,9.315e-05,2]
[356339933,1742297444840,-500.0,9.315e-05,2]
[356339934,1742297444850,-909.15,9.315e-05,2]
[356339935,1742297444860,-4526.97,9.315e-05,2]
[356339936,1742297444870,-500.0,9.315e-05,2]
[356339937,1742297444880,-500.0,9.315e-05,2]
[356339938,1742297444890,-1601.72,9.315e-05,2]
[356339939,1742297444900,-500.0,9.315e-05,2]
[356339940,1742297444910,-525.48,9.315e-05,2]
[356339941,1742297444919,-500.0,9.315e-05,2]
[356339942,1742297444930,-500.0,9.315e-05,2]
[356339943,1742297444941,-500.0,9.315e-05,2]
[356339944,1742297444951,-500.0,9.315e-05,2]
[356339945,1742297444960,-500.0,9.315e-05,2]
[356339946,1742297444971,-500.0,9.315e-05,2]
[356339947,1742297444981,-500.0,9.315e-05,2]
[356339948,1742297444991,-6515.99,9.315e-05,2]
[356339949,1742297445000,-500.0,9.315e-05,2]
[356339950,1742297445010,-21813.45,9.315e-05,2]
[356339951,1742297445021,-1136.45,9.315e-05,2]
[356339952,1742297445030,-500.0,9.315e-05,2]
[356339953,1742297445040,-958.57,9.315e-05,2]
[356339954,1742297445050,-633.44,9.315e-05,2]
[356339955,1742297445059,-4665.97,9.315e-05,2]
[356339956,1742297445069,-500.0,9.315e-05,2]
[356339957,1742297445079,-1022.31,9.315e-05,2]
[356339958,1742297445088,-500.0,9.315e-05,2]
[356339959,1742297445097,-500.0,9.315e-05,2]
[356339960,1742297445107,-766.56,9.315e-05,2]
[356339961,1742297445116,-350.0,9.327e-05,2]
[356339962,1742297445125,-500.0,9.333e-05,2]
[356339963,1742297445136,-500.84138204,9.333e-05,2]
[356339964,1742297445146,-500.0,9.333e-05,2]
[356339965,1742297445155,-800.0,9.362e-05,2]
[356339966,1742297445165,-205.85828232,9.371e-05,2]
[356339967,1742297445175,-500.0,9.398e-05,2]
[356339968,1742297445185,-311.01583125,9.404e-05,2]
[356339969,1742297445195,-500.0,9.418e-05,2]
[356339970,1742297445205,-500.0,9.428e-05,2]
[356339971,1742297445214,-500.0,9.589e-05,2]
[356339972,1742297445224,-251.59652593,9.589e-05,2]
[356339973,1742297445233,-500.0,9.589e-05,2]
[356339974,1742297445243,-500.0,9.589e-05,2]
[356339975,1742297445253,-1041.49,9.589e-05,2]
[356339976,1742297445262,-500.0,9.589e-05,2]
[356339977,1742297445272,-2390.58,9.589e-05,2]
[356339978,1742297445281,-608.64600529,9.589e-05,2]
[356339979,1742297445291,-500.0,9.589e-05,2]
[356339980,1742297445300,-500.0,9.589e-05,2]
[356339981,1742297445310,-500.0,9.589e-05,2]
[356339982,1742297445322,-500.0,9.589e-05,2]
[356339983,1742297445332,-500.0,9.589e-05,2]
[356339984,1742297445341,-500.0,9.589e-05,2]
[356339985,1742297445351,-500.0,9.589e-05,2]
[356339986,1742297445360,-909.15,9.589e-05,2]
[356339987,1742297445370,-4526.97,9.589e-05,2]
[356339988,1742297445380,-500.0,9.589e-05,2]
[356339989,1742297445389,-500.0,9.589e-05,2]
[356339990,1742297445399,-1601.72,9.589e-05,2]
[356339991,1742297445408,-500.0,9.589e-05,2]
[356339992,1742297445418,-525.48,9.589e-05,2]
[356339993,1742297445427,-500.0,9.589e-05,2]
[356339994,1742297445438,-500.0,9.589e-05,2]
[356339995,1742297445447,-500.0,9.589e-05,2]
[356339996,1742297445457,-500.0,9.589e-05,2]
[356339997,1742297445466,-500.0,9.589e-05,2]
[356339998,1742297445475,-500.0,9.589e-05,2]
[356339999,1742297445485,-500.0,9.589e-05,2]
[356340000,1742297445495,-6515.99,9.589e-05,2]
[356340001,1742297445504,-500.0,9.589e-05,2]
[356340002,1742297445513,-21813.45,9.589e-05,2]
[356340003,1742297445522,-1136.45,9.589e-05,2]
[356340004,1742297445535,-500.0,9.589e-05,2]
[356340005,1742297445545,-958.57,9.589e-05,2]
[356340006,1742297445555,-633.44,9.589e-05,2]
[356340007,1742297445564,-4665.97,9.589e-05,2]